[Event "Masters Tournament (MTO)"]
[Site "Biel, Switzerland"]
[Date "2026.07.18"]
[Round "6.20"]
[White "Kwiatkowski, Jakub"]
[Black "Cervelli, Eduard"]
[Result "0-1"]
[TimeControl "100+30+30sec/move"]
[WhiteTitle "-"]
[BlackTitle "-"]
[WhiteFideId "1348736"]
[BlackFideId "1351800"]
[WhiteElo "2107"]
[BlackElo "2197"]

1. e4 {[%clk 01:40:58]} c5 {[%clk 01:38:47]} {[%emt 00:02:12]} 2. Nf3 {[%clk
01:41:15]} {[%emt 00:00:13]} d6 {[%clk 01:38:26]} {[%emt 00:00:52]} 3. Bb5+
{[%clk 01:41:13]} {[%emt 00:00:32]} Nd7 {[%clk 01:38:44]} {[%emt 00:00:11]} 4.
Ba4 {[%clk 01:41:32]} {[%emt 00:00:11]} Ngf6 {[%clk 01:39:03]} {[%emt
00:00:10]} 5. O-O {[%clk 01:41:54]} {[%emt 00:00:09]} e6 {[%clk 01:39:12]}
{[%emt 00:00:22]} 6. Re1 {[%clk 01:42:12]} {[%emt 00:00:11]} a6 {[%clk
01:26:59]} {[%emt 00:12:43]} 7. c4 {[%clk 01:42:19]} {[%emt 00:00:23]} Be7
{[%clk 01:27:04]} {[%emt 00:00:25]} 8. Nc3 {[%clk 01:42:36]} {[%emt 00:00:13]}
O-O {[%clk 01:27:24]} {[%emt 00:00:10]} 9. d4 {[%clk 01:42:40]} {[%emt
00:00:27]} cxd4 {[%clk 01:26:07]} {[%emt 00:01:46]} 10. Nxd4 {[%clk 01:42:55]}
{[%emt 00:00:16]} Nb6 {[%clk 01:24:44]} {[%emt 00:01:52]} 11. Bb3 {[%clk
01:42:07]} {[%emt 00:01:18]} Bd7 {[%clk 01:25:04]} {[%emt 00:00:10]} 12. Be3
{[%clk 01:41:29]} {[%emt 00:01:08]} Rc8 {[%clk 01:24:51]} {[%emt 00:00:43]} 13.
Qe2 {[%clk 01:41:48]} {[%emt 00:00:13]} Qc7 {[%clk 01:20:11]} {[%emt 00:05:08]}
14. Rac1 {[%clk 01:41:45]} {[%emt 00:00:33]} Rfe8 {[%clk 01:20:18]} {[%emt
00:00:22]} 15. f4 {[%clk 01:30:02]} {[%emt 00:12:14]} Nxc4 {[%clk 01:05:00]}
{[%emt 00:15:48]} 16. Bf2 {[%clk 01:28:07]} {[%emt 00:02:25]} e5 {[%clk
00:49:31]} {[%emt 00:15:59]} 17. Nf3 {[%clk 01:08:47]} {[%emt 00:19:50]} b5
{[%clk 00:47:47]} {[%emt 00:02:14]} 18. f5 {[%clk 01:06:48]} {[%emt 00:02:29]}
Qb7 {[%clk 00:43:49]} {[%emt 00:04:28]} 19. Bh4 {[%clk 01:00:32]} {[%emt
00:06:47]} Nb6 {[%clk 00:35:13]} {[%emt 00:09:06]} 20. Rcd1 {[%clk 00:50:47]}
{[%emt 00:10:14]} b4 {[%clk 00:33:21]} {[%emt 00:02:22]} 21. Bxf6 {[%clk
00:42:27]} {[%emt 00:08:51]} Bxf6 {[%clk 00:31:40]} {[%emt 00:02:10]} 22. Nd5
{[%clk 00:42:46]} {[%emt 00:00:11]} Nxd5 {[%clk 00:31:41]} {[%emt 00:00:27]} 23.
Bxd5 {[%clk 00:42:13]} {[%emt 00:01:05]} Qb6+ {[%clk 00:31:42]} {[%emt
00:00:29]} 24. Kh1 {[%clk 00:42:17]} {[%emt 00:00:26]} Red8 {[%clk 00:25:41]}
{[%emt 00:06:31]} 25. h4 {[%clk 00:37:15]} {[%emt 00:05:32]} Bb5 {[%clk
00:25:01]} {[%emt 00:01:10]} 26. Qd2 {[%clk 00:35:07]} {[%emt 00:02:37]} Bc4
{[%clk 00:25:25]} {[%emt 00:00:06]} 27. Ng5 {[%clk 00:31:07]} {[%emt 00:04:31]}
Bxd5 {[%clk 00:23:57]} {[%emt 00:01:58]} 28. Qxd5 {[%clk 00:31:26]} {[%emt
00:00:11]} Bxg5 {[%clk 00:24:07]} {[%emt 00:00:20]} 29. hxg5 {[%clk 00:31:44]}
{[%emt 00:00:12]} Qf2 {[%clk 00:24:20]} {[%emt 00:00:16]} 30. Qa5 {[%clk
00:23:24]} {[%emt 00:08:51]} Qh4+ {[%clk 00:17:17]} {[%emt 00:07:33]} 31. Kg1
{[%clk 00:20:17]} {[%emt 00:03:37]} Qxg5 {[%clk 00:15:11]} {[%emt 00:02:35]} 32.
Qxa6 {[%clk 00:20:20]} {[%emt 00:00:28]} h5 {[%clk 00:12:20]} {[%emt 00:03:21]}
33. Qd3 {[%clk 00:18:14]} {[%emt 00:02:36]} Rc6 {[%clk 00:09:28]} {[%emt
00:03:22]} 34. Re3 {[%clk 00:16:59]} {[%emt 00:01:45]} h4 {[%clk 00:06:37]}
{[%emt 00:03:21]} 35. Re2 {[%clk 00:11:28]} {[%emt 00:06:01]} Rdc8 {[%clk
00:06:49]} {[%emt 00:00:18]} 36. Qd2 {[%clk 00:11:36]} {[%emt 00:00:22]} Qg4
{[%clk 00:06:04]} {[%emt 00:01:15]} 37. Qd3 {[%clk 00:10:46]} {[%emt 00:01:20]}
Rc1 {[%clk 00:05:10]} {[%emt 00:01:23]} 38. Red2 {[%clk 00:10:48]} {[%emt
00:00:29]} h3 {[%clk 00:03:28]} {[%emt 00:02:12]} 39. Qf3 {[%clk 00:09:36]}
{[%emt 00:01:42]} Qxf3 {[%clk 00:03:45]} {[%emt 00:00:13]} 40. gxf3 {[%clk
00:09:58]} {[%emt 00:00:08]} Rxd1+ {[%clk 00:04:12]} {[%emt 00:00:02]} 41. Rxd1
{[%clk 00:10:06]} {[%emt 00:00:23]} Rc2 {[%clk 00:04:40]} {[%emt 00:00:02]} 42.
Rxd6 {[%clk 00:09:45]} {[%emt 00:00:51]} Rxb2 {[%clk 00:04:35]} {[%emt
00:00:34]} 43. Rb6 {[%clk 00:10:00]} {[%emt 00:00:16]} Kh7 {[%clk 00:04:38]}
{[%emt 00:00:27]} 44. Kh1 {[%clk 00:10:05]} {[%emt 00:00:25]} f6 {[%clk
00:04:41]} {[%emt 00:00:27]} 45. Rb8 {[%clk 00:09:29]} {[%emt 00:01:06]} Kh6
{[%clk 00:04:25]} {[%emt 00:00:45]} 46. Rh8+ {[%clk 00:08:47]} {[%emt
00:01:13]} Kg5 {[%clk 00:04:49]} {[%emt 00:00:05]} 47. Rg8 {[%clk 00:09:06]}
{[%emt 00:00:12]} Rxa2 {[%clk 00:04:48]} {[%emt 00:00:31]} 48. Rxg7+ {[%clk
00:09:14]} {[%emt 00:00:21]} Kf4 {[%clk 00:05:09]} {[%emt 00:00:10]} 49. Rb7
{[%clk 00:09:09]} {[%emt 00:00:35]} Kg3 {[%clk 00:05:31]} {[%emt 00:00:07]} 50.
Rg7+ {[%clk 00:09:27]} {[%emt 00:00:13]} Kxf3 {[%clk 00:05:50]} {[%emt
00:00:11]} 51. Rg1 {[%clk 00:09:49]} {[%emt 00:00:08]} Kxe4 {[%clk 00:05:58]}
{[%emt 00:00:22]} 52. Rg4+ {[%clk 00:09:57]} {[%emt 00:00:22]} Kxf5 {[%clk
00:06:09]} {[%emt 00:00:19]} 53. Rxb4 {[%clk 00:10:20]} {[%emt 00:00:06]} e4
{[%clk 00:05:15]} {[%emt 00:01:25]} 54. Rb3 {[%clk 00:10:22]} {[%emt 00:00:29]}
Kg4 {[%clk 00:05:32]} {[%emt 00:00:12]} 55. Kg1 {[%clk 00:10:41]} {[%emt
00:00:12]} f5 {[%clk 00:05:50]} {[%emt 00:00:11]} 56. Kh1 {[%clk 00:11:04]}
{[%emt 00:00:07]} f4 {[%clk 00:06:10]} {[%emt 00:00:09]} 57. Kg1 {[%clk
00:10:58]} {[%emt 00:00:37]} e3 {[%clk 00:06:25]} {[%emt 00:00:14]} 58. Kf1
{[%clk 00:10:59]} {[%emt 00:00:30]} h2 {[%clk 00:06:31]} {[%emt 00:00:24]} 0-1

[Event "Masters Tournament (MTO)"]
[Site "Biel, Switzerland"]
[Date "2026.07.18"]
[Round "6.21"]
[White "Stefan, Iulia-Cristiana"]
[Black "Udelnov, Valentin"]
[Result "0-1"]
[TimeControl "100+30+30sec/move"]
[WhiteTitle "-"]
[BlackTitle "-"]
[WhiteFideId "1273876"]
[BlackFideId "16265734"]
[WhiteElo "2053"]
[BlackElo "2269"]

1. d4 Nf6 {[%clk 01:40:55]} {[%emt 00:00:04]} 2. Nf3 {[%clk 01:41:25]} {[%emt
00:00:03]} g6 {[%clk 01:41:22]} {[%emt 00:00:04]} 3. c4 {[%clk 01:41:51]}
{[%emt 00:00:04]} Bg7 {[%clk 01:41:49]} {[%emt 00:00:03]} 4. g3 {[%clk
01:42:16]} {[%emt 00:00:05]} O-O {[%clk 01:42:14]} {[%emt 00:00:06]} 5. Bg2
{[%clk 01:42:42]} {[%emt 00:00:02]} d6 {[%clk 01:42:40]} {[%emt 00:00:04]} 6.
Nc3 {[%clk 01:43:08]} {[%emt 00:00:05]} Nc6 {[%clk 01:43:07]} {[%emt 00:00:03]}
7. d5 {[%clk 01:43:24]} {[%emt 00:00:14]} Na5 {[%clk 01:43:29]} {[%emt
00:00:08]} 8. b3 {[%clk 01:43:47]} {[%emt 00:00:07]} c5 {[%clk 01:43:52]}
{[%emt 00:00:06]} 9. Bb2 {[%clk 01:43:29]} {[%emt 00:00:49]} a6 {[%clk
01:43:58]} {[%emt 00:00:24]} 10. Nd2 {[%clk 01:43:15]} {[%emt 00:00:44]} Rb8
{[%clk 01:43:58]} {[%emt 00:00:30]} 11. Qc1 {[%clk 01:43:07]} {[%emt 00:00:38]}
b5 {[%clk 01:37:24]} {[%emt 00:07:04]} 12. O-O {[%clk 01:27:26]} {[%emt
00:16:10]} e5 {[%clk 01:22:26]} {[%emt 00:15:29]} 13. dxe6 {[%clk 01:25:11]}
{[%emt 00:02:45]} Bxe6 {[%clk 01:22:49]} {[%emt 00:00:07]} 14. cxb5 {[%clk
01:24:59]} {[%emt 00:00:42]} axb5 {[%clk 01:23:03]} {[%emt 00:00:16]} 15. Nce4
{[%clk 01:22:02]} {[%emt 00:03:26]} Ne8 {[%clk 01:13:28]} {[%emt 00:10:05]} 16.
Bxg7 {[%clk 01:19:45]} {[%emt 00:02:47]} Kxg7 {[%clk 01:13:32]} {[%emt
00:00:26]} 17. Qc3+ {[%clk 01:13:42]} {[%emt 00:06:33]} f6 {[%clk 01:13:57]}
{[%emt 00:00:06]} 18. Rfd1 {[%clk 01:07:19]} {[%emt 00:06:52]} b4 {[%clk
01:07:28]} {[%emt 00:06:59]} 19. Qb2 {[%clk 01:05:21]} {[%emt 00:02:28]} Qe7
{[%clk 01:07:03]} {[%emt 00:00:55]} 20. Rac1 {[%clk 01:01:44]} {[%emt
00:04:06]} Rc8 {[%clk 01:05:54]} {[%emt 00:01:40]} 21. Nf1 {[%clk 00:24:59]}
{[%emt 00:37:15]} Nc6 {[%clk 00:59:31]} {[%emt 00:06:53]} 22. Ng5 {[%clk
00:23:00]} {[%emt 00:02:29]} Bg8 {[%clk 00:58:33]} {[%emt 00:01:30]} 23. Bh3
{[%clk 00:21:49]} {[%emt 00:01:39]} Rd8 {[%clk 00:53:51]} {[%emt 00:05:11]} 24.
Bg2 {[%clk 00:19:11]} {[%emt 00:03:09]} d5 {[%clk 00:47:47]} {[%emt 00:06:34]}
25. Ne3 {[%clk 00:18:06]} {[%emt 00:01:34]} Nd4 {[%clk 00:30:59]} {[%emt
00:17:19]} 26. Nh3 {[%clk 00:17:26]} {[%emt 00:01:10]} Nc7 {[%clk 00:31:19]}
{[%emt 00:00:10]} 27. Nf4 {[%clk 00:17:30]} {[%emt 00:00:26]} Ncb5 {[%clk
00:29:30]} {[%emt 00:02:20]} 28. Nfxd5 {[%clk 00:16:28]} {[%emt 00:01:31]} Bxd5
{[%clk 00:29:48]} {[%emt 00:00:12]} 29. Nxd5 {[%clk 00:15:56]} {[%emt
00:01:01]} Qe5 {[%clk 00:29:01]} {[%emt 00:01:18]} 30. Rd2 {[%clk 00:12:18]}
{[%emt 00:04:09]} Rxd5 {[%clk 00:29:14]} {[%emt 00:00:17]} 31. e3 {[%clk
00:12:03]} {[%emt 00:00:44]} Rd6 {[%clk 00:17:05]} {[%emt 00:12:40]} 32. exd4
{[%clk 00:12:10]} {[%emt 00:00:22]} Nxd4 {[%clk 00:17:31]} {[%emt 00:00:04]} 33.
Kh1 {[%clk 00:11:25]} {[%emt 00:01:16]} Rfd8 {[%clk 00:17:19]} {[%emt
00:00:42]} 34. Rcd1 {[%clk 00:10:46]} {[%emt 00:01:10]} Qh5 {[%clk 00:13:48]}
{[%emt 00:04:00]} 35. Rd3 {[%clk 00:09:26]} {[%emt 00:01:50]} Re8 {[%clk
00:13:06]} {[%emt 00:01:12]} 36. h3 {[%clk 00:04:03]} {[%emt 00:05:53]} Rde6
{[%clk 00:13:11]} {[%emt 00:00:26]} 37. Qc1 {[%clk 00:02:24]} {[%emt 00:02:08]}
Qf5 {[%clk 00:10:17]} {[%emt 00:03:23]} 38. f4 {[%clk 00:00:45]} {[%emt
00:02:10]} h5 {[%clk 00:05:27]} {[%emt 00:05:21]} 39. Qa1 {[%clk 00:00:38]}
{[%emt 00:00:37]} Re2 {[%clk 00:04:42]} {[%emt 00:01:14]} 40. Rxd4 {[%clk
00:00:34]} {[%emt 00:00:33]} cxd4 {[%clk 00:03:45]} {[%emt 00:01:28]} 41. Qxd4
{[%clk 00:00:56]} {[%emt 00:00:08]} Qc2 {[%clk 00:29:42]} {[%emt 00:04:32]} 42.
Rg1 {[%clk 00:22:07]} {[%emt 00:09:19]} Qc3 {[%clk 00:29:43]} {[%emt 00:00:30]}
43. Qd6 {[%clk 00:20:54]} {[%emt 00:01:42]} Qxg3 {[%clk 00:29:50]} {[%emt
00:00:24]} 44. Qxb4 {[%clk 00:20:21]} {[%emt 00:01:03]} Re1 {[%clk 00:30:11]}
{[%emt 00:00:09]} 45. Bf1 {[%clk 00:19:01]} {[%emt 00:01:50]} Qf3+ {[%clk
00:29:59]} {[%emt 00:00:42]} 46. Bg2 {[%clk 00:19:16]} {[%emt 00:00:15]} Rxg1+
{[%clk 00:29:56]} {[%emt 00:00:32]} 47. Kxg1 {[%clk 00:19:42]} {[%emt
00:00:05]} Qe3+ {[%clk 00:22:49]} {[%emt 00:07:37]} 48. Kh2 {[%clk 00:19:18]}
{[%emt 00:00:54]} Re7 {[%clk 00:20:20]} {[%emt 00:02:59]} 49. h4 {[%clk
00:10:05]} {[%emt 00:09:42]} Rd7 {[%clk 00:18:51]} {[%emt 00:01:59]} 50. Qe4
{[%clk 00:07:17]} {[%emt 00:03:18]} Qf2 {[%clk 00:17:47]} {[%emt 00:01:34]} 51.
Kh3 {[%clk 00:07:12]} {[%emt 00:00:36]} Rc7 {[%clk 00:16:15]} {[%emt 00:02:02]}
52. Qf3 {[%clk 00:04:32]} {[%emt 00:03:09]} Qe1 {[%clk 00:16:27]} {[%emt
00:00:18]} 53. Kh2 {[%clk 00:02:26]} {[%emt 00:02:35]} Qxh4+ {[%clk 00:16:52]}
{[%emt 00:00:06]} 54. Kg1 {[%clk 00:02:32]} {[%emt 00:00:24]} Qe1+ {[%clk
00:17:05]} {[%emt 00:00:16]} 55. Qf1 {[%clk 00:01:39]} {[%emt 00:01:24]} Qg3
{[%clk 00:16:56]} {[%emt 00:00:39]} 56. f5 {[%clk 00:01:44]} {[%emt 00:00:24]}
Re7 {[%clk 00:17:17]} {[%emt 00:00:09]} 0-1

[Event "Masters Tournament (MTO)"]
[Site "Biel, Switzerland"]
[Date "2026.07.18"]
[Round "6.22"]
[White "Ashwath, Kaushik"]
[Black "Jelicic, Hugo"]
[Result "1-0"]
[TimeControl "100+30+30sec/move"]
[WhiteTitle "-"]
[BlackTitle "-"]
[WhiteFideId "33387230"]
[BlackFideId "1349040"]
[WhiteElo "2278"]
[BlackElo "1907"]

1. d4 {[%clk 01:40:57]} d5 {[%clk 01:40:56]} {[%emt 00:00:04]} 2. Nf3 {[%clk
01:41:23]} {[%emt 00:00:05]} Nf6 {[%clk 01:41:09]} {[%emt 00:00:16]} 3. c4
{[%clk 01:41:42]} {[%emt 00:00:11]} e6 {[%clk 01:41:34]} {[%emt 00:00:06]} 4.
e3 {[%clk 01:41:34]} {[%emt 00:00:36]} c6 {[%clk 01:40:52]} {[%emt 00:01:13]} 5.
b3 {[%clk 01:41:58]} {[%emt 00:00:06]} Bb4+ {[%clk 01:39:15]} {[%emt 00:02:07]}
6. Nbd2 {[%clk 01:39:48]} {[%emt 00:02:40]} Nbd7 {[%clk 01:36:29]} {[%emt
00:03:16]} 7. Bd3 {[%clk 01:37:25]} {[%emt 00:02:52]} O-O {[%clk 01:34:08]}
{[%emt 00:02:51]} 8. O-O {[%clk 01:35:25]} {[%emt 00:02:30]} b6 {[%clk
01:21:43]} {[%emt 00:12:56]} 9. Bb2 {[%clk 01:28:43]} {[%emt 00:07:12]} Bb7
{[%clk 01:21:14]} {[%emt 00:00:59]} 10. a3 {[%clk 01:26:44]} {[%emt 00:02:29]}
Be7 {[%clk 01:20:55]} {[%emt 00:00:48]} 11. Qe2 {[%clk 01:18:49]} {[%emt
00:08:25]} c5 {[%clk 01:17:57]} {[%emt 00:03:28]} 12. Rfd1 {[%clk 01:15:48]}
{[%emt 00:03:31]} Ne4 {[%clk 01:13:10]} {[%emt 00:05:18]} 13. cxd5 {[%clk
01:09:00]} {[%emt 00:07:17]} Nxd2 {[%clk 01:10:07]} {[%emt 00:03:34]} 14. Nxd2
{[%clk 01:07:40]} {[%emt 00:01:49]} exd5 {[%clk 01:09:58]} {[%emt 00:00:39]} 15.
e4 {[%clk 00:59:55]} {[%emt 00:08:15]} cxd4 {[%clk 00:55:02]} {[%emt 00:15:26]}
16. Bxd4 {[%clk 00:51:34]} {[%emt 00:08:51]} Re8 {[%clk 00:51:56]} {[%emt
00:03:36]} 17. e5 {[%clk 00:43:11]} {[%emt 00:08:54]} Bc5 {[%clk 00:48:47]}
{[%emt 00:03:39]} 18. Bb2 {[%clk 00:37:32]} {[%emt 00:06:08]} Qg5 {[%clk
00:43:41]} {[%emt 00:05:36]} 19. Nf3 {[%clk 00:32:32]} {[%emt 00:05:30]} Qh5
{[%clk 00:43:31]} {[%emt 00:00:41]} 20. Ba6 {[%clk 00:27:17]} {[%emt 00:05:44]}
Bc6 {[%clk 00:19:33]} {[%emt 00:24:28]} 21. b4 {[%clk 00:26:41]} {[%emt
00:01:07]} Bf8 {[%clk 00:19:04]} {[%emt 00:00:59]} 22. b5 {[%clk 00:26:17]}
{[%emt 00:00:54]} 1-0

[Event "Masters Tournament (MTO)"]
[Site "Biel, Switzerland"]
[Date "2026.07.18"]
[Round "6.23"]
[White "Lumsdon, Andrew"]
[Black "Gireada, Daniel"]
[Result "0-1"]
[TimeControl "100+30+30sec/move"]
[WhiteTitle "-"]
[BlackTitle "-"]
[WhiteFideId "1308840"]
[BlackFideId "1206451"]
[WhiteElo "2033"]
[BlackElo "2255"]

1. e4 {[%clk 01:40:55]} {[%emt 00:00:03]} c6 {[%clk 01:40:50]} {[%emt
00:00:12]} 2. f4 {[%clk 01:41:16]} {[%emt 00:00:08]} d5 {[%clk 01:41:03]}
{[%emt 00:00:17]} 3. e5 {[%clk 01:41:41]} {[%emt 00:00:05]} Bf5 {[%clk
01:41:12]} {[%emt 00:00:22]} 4. d3 {[%clk 01:41:49]} {[%emt 00:00:21]} e6
{[%clk 01:41:01]} {[%emt 00:00:41]} 5. Nf3 {[%clk 01:41:58]} {[%emt 00:00:21]}
c5 {[%clk 01:40:18]} {[%emt 00:01:14]} 6. c3 {[%clk 01:42:10]} {[%emt
00:00:17]} Nc6 {[%clk 01:40:23]} {[%emt 00:00:26]} 7. Be2 {[%clk 01:42:34]}
{[%emt 00:00:06]} Be7 {[%clk 01:23:11]} {[%emt 00:17:43]} 8. O-O {[%clk
01:42:48]} {[%emt 00:00:15]} h6 {[%clk 01:21:24]} {[%emt 00:02:18]} 9. Na3
{[%clk 01:42:55]} {[%emt 00:00:22]} g5 {[%clk 01:21:06]} {[%emt 00:00:48]} 10.
Nc2 {[%clk 01:41:04]} {[%emt 00:02:21]} d4 {[%clk 01:14:39]} {[%emt 00:06:58]}
11. c4 {[%clk 01:40:51]} {[%emt 00:00:42]} g4 {[%clk 01:11:15]} {[%emt
00:03:55]} 12. Nd2 {[%clk 01:38:51]} {[%emt 00:02:29]} h5 {[%clk 01:11:34]}
{[%emt 00:00:12]} 13. Ne4 {[%clk 01:39:16]} {[%emt 00:00:05]} f6 {[%clk
01:11:40]} {[%emt 00:00:24]} 14. exf6 {[%clk 01:38:48]} {[%emt 00:00:57]} Nxf6
{[%clk 01:11:56]} {[%emt 00:00:14]} 15. Ng5 {[%clk 01:39:06]} {[%emt 00:00:11]}
Nh7 {[%clk 01:05:01]} {[%emt 00:07:26]} 16. Ne4 {[%clk 01:39:26]} {[%emt
00:00:09]} Qd7 {[%clk 01:04:48]} {[%emt 00:00:44]} 17. Bd2 {[%clk 01:39:46]}
{[%emt 00:00:09]} Bxe4 {[%clk 01:04:11]} {[%emt 00:01:08]} 18. dxe4 {[%clk
01:37:18]} {[%emt 00:02:58]} d3 {[%clk 01:04:27]} {[%emt 00:00:15]} 19. Bc3
{[%clk 01:35:13]} {[%emt 00:02:35]} dxe2 {[%clk 01:03:45]} {[%emt 00:01:11]} 20.
Qxe2 {[%clk 01:35:37]} {[%emt 00:00:06]} Nd4 {[%clk 00:53:07]} {[%emt
00:11:10]} 21. Qf2 {[%clk 01:34:37]} {[%emt 00:01:29]} Nf6 {[%clk 00:50:45]}
{[%emt 00:02:51]} 22. Rfe1 {[%clk 01:34:39]} {[%emt 00:00:28]} Nxc2 {[%clk
00:49:53]} {[%emt 00:01:22]} 23. Qxc2 {[%clk 01:35:01]} {[%emt 00:00:09]} O-O-O
{[%clk 00:49:59]} {[%emt 00:00:24]} 24. e5 {[%clk 01:31:12]} {[%emt 00:04:19]}
Nh7 {[%clk 00:41:51]} {[%emt 00:08:38]} 25. Rad1 {[%clk 01:25:54]} {[%emt
00:05:47]} Qe8 {[%clk 00:36:52]} {[%emt 00:05:29]} 26. f5 {[%clk 01:21:49]}
{[%emt 00:04:35]} Ng5 {[%clk 00:29:17]} {[%emt 00:08:06]} 27. f6 {[%clk
01:19:37]} {[%emt 00:02:41]} Rxd1 {[%clk 00:28:45]} {[%emt 00:01:03]} 28. Rxd1
{[%clk 01:16:41]} {[%emt 00:03:26]} Bd8 {[%clk 00:28:41]} {[%emt 00:00:34]} 29.
Bd2 {[%clk 01:12:19]} {[%emt 00:04:52]} Nf7 {[%clk 00:28:09]} {[%emt 00:01:01]}
30. Bf4 {[%clk 01:09:27]} {[%emt 00:03:21]} Bc7 {[%clk 00:27:26]} {[%emt
00:01:15]} 31. Qe4 {[%clk 01:08:38]} {[%emt 00:01:18]} Nd8 {[%clk 00:16:31]}
{[%emt 00:11:26]} 32. Rf1 {[%clk 01:07:46]} {[%emt 00:01:22]} Qf7 {[%clk
00:14:00]} {[%emt 00:03:01]} 33. Be3 {[%clk 01:08:03]} {[%emt 00:00:12]} Qh7
{[%clk 00:14:08]} {[%emt 00:00:22]} 34. Qf4 {[%clk 01:05:40]} {[%emt 00:02:52]}
Nf7 {[%clk 00:13:20]} {[%emt 00:01:20]} 35. Bxc5 {[%clk 01:05:54]} {[%emt
00:00:16]} Bxe5 {[%clk 00:13:42]} {[%emt 00:00:07]} 36. Qe3 {[%clk 01:05:12]}
{[%emt 00:01:11]} b6 {[%clk 00:03:59]} {[%emt 00:10:15]} 37. Be7 {[%clk
01:00:29]} {[%emt 00:05:12]} Qc2 {[%clk 00:02:57]} {[%emt 00:01:33]} 38. c5
{[%clk 00:56:46]} {[%emt 00:04:13]} Qxb2 {[%clk 00:02:57]} {[%emt 00:00:31]} 39.
Rd1 {[%clk 00:57:10]} {[%emt 00:00:05]} h4 {[%clk 00:00:40]} {[%emt 00:02:47]}
40. cxb6 {[%clk 00:56:16]} {[%emt 00:01:24]} axb6 {[%clk 00:00:33]} {[%emt
00:00:37]} 41. Qe4 {[%clk 00:52:31]} {[%emt 00:04:15]} Kb8 {[%clk 00:28:50]}
{[%emt 00:02:13]} 42. Rd7 {[%clk 00:55:37]} {[%emt 00:27:23]} Qc1+ {[%clk
00:28:24]} {[%emt 00:00:56]} 43. Kf2 {[%clk 00:55:31]} {[%emt 00:00:36]} Qf4+
{[%clk 00:28:46]} {[%emt 00:00:08]} 44. Qxf4 {[%clk 00:55:36]} {[%emt
00:00:25]} Bxf4 {[%clk 00:29:11]} {[%emt 00:00:05]} 45. Rd4 {[%clk 00:55:55]}
{[%emt 00:00:11]} g3+ {[%clk 00:23:02]} {[%emt 00:06:39]} 46. hxg3 {[%clk
00:56:01]} {[%emt 00:00:24]} Bxg3+ {[%clk 00:23:24]} {[%emt 00:00:09]} 47. Kf3
{[%clk 00:56:04]} {[%emt 00:00:27]} Rh5 {[%clk 00:23:30]} {[%emt 00:00:25]} 48.
a4 {[%clk 00:49:53]} {[%emt 00:06:40]} Rf5+ {[%clk 00:23:27]} {[%emt 00:00:33]}
49. Kg4 {[%clk 00:49:54]} {[%emt 00:00:30]} Nh6+ {[%clk 00:23:25]} {[%emt
00:00:32]} 50. Kh3 {[%clk 00:49:47]} {[%emt 00:00:36]} Rf1 {[%clk 00:23:32]}
{[%emt 00:00:23]} 51. Rxh4 {[%clk 00:46:43]} {[%emt 00:03:34]} Bxh4 {[%clk
00:23:55]} {[%emt 00:00:07]} 52. Kxh4 {[%clk 00:47:11]} {[%emt 00:00:02]} Kc8
{[%clk 00:24:12]} {[%emt 00:00:13]} 53. Kg5 {[%clk 00:46:44]} {[%emt 00:00:57]}
Ng8 {[%clk 00:24:28]} {[%emt 00:00:14]} 54. Kg6 {[%clk 00:46:19]} {[%emt
00:00:55]} Nxe7+ {[%clk 00:24:31]} {[%emt 00:00:28]} 0-1

[Event "Masters Tournament (MTO)"]
[Site "Biel, Switzerland"]
[Date "2026.07.18"]
[Round "6.24"]
[White "Harish, Neeraj"]
[Black "Aryan, Goyal"]
[Result "1-0"]
[TimeControl "100+30+30sec/move"]
[WhiteTitle "-"]
[BlackTitle "-"]
[WhiteFideId "30958130"]
[BlackFideId "366108825"]
[WhiteElo "2201"]
[BlackElo "2029"]

1. e4 {[%clk 01:40:47]} {[%emt 00:00:11]} e5 {[%clk 01:40:40]} {[%emt
00:00:19]} 2. Nf3 {[%clk 01:41:09]} {[%emt 00:00:09]} Nc6 {[%clk 01:41:00]}
{[%emt 00:00:09]} 3. Bb5 {[%clk 01:41:33]} {[%emt 00:00:07]} a6 {[%clk
01:41:18]} {[%emt 00:00:12]} 4. Ba4 {[%clk 01:41:56]} {[%emt 00:00:07]} Nf6
{[%clk 01:41:43]} {[%emt 00:00:05]} 5. O-O {[%clk 01:42:17]} {[%emt 00:00:10]}
Nxe4 {[%clk 01:42:03]} {[%emt 00:00:09]} 6. d4 {[%clk 01:42:37]} {[%emt
00:00:11]} b5 {[%clk 01:42:23]} {[%emt 00:00:10]} 7. Bb3 {[%clk 01:43:00]}
{[%emt 00:00:07]} d5 {[%clk 01:42:45]} {[%emt 00:00:07]} 8. dxe5 {[%clk
01:43:23]} {[%emt 00:00:08]} Be6 {[%clk 01:43:08]} {[%emt 00:00:06]} 9. c3
{[%clk 01:43:42]} {[%emt 00:00:11]} Bc5 {[%clk 01:43:01]} {[%emt 00:00:37]} 10.
Nbd2 {[%clk 01:43:18]} {[%emt 00:00:55]} O-O {[%clk 01:41:12]} {[%emt
00:02:17]} 11. Bc2 {[%clk 01:43:36]} {[%emt 00:00:14]} Nxf2 {[%clk 01:40:20]}
{[%emt 00:01:21]} 12. Rxf2 {[%clk 01:43:57]} {[%emt 00:00:09]} f6 {[%clk
01:40:44]} {[%emt 00:00:06]} 13. Nf1 {[%clk 01:44:16]} {[%emt 00:00:11]} Bxf2+
{[%clk 01:40:21]} {[%emt 00:00:53]} 14. Kxf2 {[%clk 01:44:31]} {[%emt
00:00:15]} fxe5 {[%clk 01:36:55]} {[%emt 00:03:56]} 15. Kg1 {[%clk 01:44:43]}
{[%emt 00:00:18]} Bg4 {[%clk 01:24:19]} {[%emt 00:13:06]} 16. Ne3 {[%clk
01:44:48]} {[%emt 00:00:25]} Bxf3 {[%clk 01:19:39]} {[%emt 00:05:10]} 17. gxf3
{[%clk 01:44:02]} {[%emt 00:01:16]} d4 {[%clk 01:19:24]} {[%emt 00:00:46]} 18.
Ng4 {[%clk 01:35:12]} {[%emt 00:09:19]} Qe7 {[%clk 00:50:00]} {[%emt 00:29:53]}
19. Be4 {[%clk 01:25:35]} {[%emt 00:10:08]} Rad8 {[%clk 00:36:46]} {[%emt
00:13:44]} 20. Bxc6 {[%clk 01:21:49]} {[%emt 00:04:16]} Qc5 {[%clk 00:37:01]}
{[%emt 00:00:15]} 21. Qb3+ {[%clk 01:20:45]} {[%emt 00:01:34]} Kh8 {[%clk
00:37:23]} {[%emt 00:00:08]} 22. Be4 {[%clk 01:20:07]} {[%emt 00:01:08]} dxc3+
{[%clk 00:36:33]} {[%emt 00:01:20]} 23. Be3 {[%clk 01:19:45]} {[%emt 00:00:52]}
cxb2 {[%clk 00:36:31]} {[%emt 00:00:32]} 24. Qxb2 {[%clk 01:19:58]} {[%emt
00:00:17]} 1-0